lending/lending_fUSD_20240809
["ID","MTS","AMOUNT","RATE_DAILY","PERIOD"]
[334561054,1723213870514,-150.0,0.00024087,4]
[334561055,1723213870524,-5000.0,0.00024091,2]
[334561056,1723213870533,-5000.0,0.00024093,2]
[334561057,1723213870542,-900.0,0.00024094,2]
[334561058,1723213870551,-2536.09,0.00024094,2]
[334561059,1723213870565,-5000.0,0.00024095,2]
[334561060,1723213870576,-1461442.0,0.000241,2]
[334561061,1723213870585,-16858.50507718,0.000241,5]
[334561062,1723213870595,-500.0,0.00024108,2]
[334561063,1723213870605,-500.0,0.00024109,5]
[334561064,1723213870614,-600.0,0.00024129,2]
[334561065,1723213870624,-500.0,0.00024145,2]
[334561066,1723213870633,-366.61282358,0.00024152,4]
[334561067,1723213870643,-150.0,0.0002416,2]
[334561068,1723213870652,-5000.0,0.00024163,2]
[334561069,1723213870661,-5000.0,0.00024164,2]
[334561070,1723213870671,-5000.0,0.00024169,2]
[334561071,1723213870680,-150.0,0.0002417,2]
[334561072,1723213870690,-150.0,0.00024178,2]
[334561073,1723213870700,-5000.0,0.00024179,2]
[334561074,1723213870816,-500.0,0.00024191,2]
[334561075,1723213870826,-3003.4327591,0.000242,4]
[334561076,1723213870837,-2024.54962582,0.000242,2]
[334561077,1723213870847,-500.0,0.00024204,2]
[334561078,1723213870857,-397.83920154,0.0002421,2]
[334561079,1723213870867,-3100.0,0.00024216,2]
[334561080,1723213870877,-1824.44,0.0002422,2]
[334561081,1723213870887,-800.0,0.00024226,2]
[334561082,1723213870897,-25000.0,0.00024227,2]
[334561083,1723213870906,-3100.0,0.00024237,2]
[334561084,1723213870916,-150.0,0.00024239,4]
[334561085,1723213870926,-574.0,0.0002425,2]
[334561086,1723213870935,-1219.71746824,0.0002425,2]
[334561087,1723213870945,-150.0,0.00024253,2]
[334561088,1723213870955,-150.0,0.00024255,2]
[334561089,1723213870964,-157.95458,0.00024255,2]
[334561090,1723213870975,-173.0,0.00024255,2]
[334561091,1723213870985,-5000.0,0.00024263,2]
[334561092,1723213870995,-5000.0,0.00024269,2]
[334561093,1723213871007,-500.0,0.0002429,2]
[334561094,1723213871017,-366.61282358,0.00024293,4]
[334561095,1723213871027,-243882.64993976,0.000243,5]
[334561096,1723213871037,-169.26568717,0.000243,2]
[334561097,1723213871048,-297080.622708,0.000243,2]
[334561098,1723213871066,-5000.0,0.00024302,2]
[334561099,1723213871076,-150.0,0.00024304,2]
[334561100,1723213871086,-5000.0,0.00024305,2]
[334561101,1723213871096,-25000.0,0.00024306,2]
[334561102,1723213871106,-4720.06,0.00024316,2]
[334561103,1723213871115,-8921.84,0.0002432,2]
[334561104,1723213871126,-1700.0,0.00024322,2]
[334561105,1723213871136,-150.0,0.0002433,2]
[334561106,1723213871146,-500.0,0.0002433,2]
[334561107,1723213871156,-829.77337105,0.00024331,2]
[334561108,1723213871167,-150.0,0.00024333,2]
[334561109,1723213871177,-5000.0,0.00024337,2]
[334561110,1723213871187,-150.0,0.00024342,2]
[334561111,1723213871198,-500.0,0.00024356,2]
[334561112,1723213871209,-150.0,0.00024376,2]
[334561113,1723213871219,-150.0,0.00024376,2]
[334561114,1723213871229,-384.4532647,0.00024379,2]
[334561115,1723213871239,-25000.0,0.00024382,2]
[334561116,1723213871249,-150.0,0.00024391,4]
[334561117,1723213871259,-150.0,0.00024391,4]
[334561118,1723213871269,-1500.0,0.000244,2]
[334561119,1723213871279,-150.0,0.000244,2]
[334561120,1723213871289,-14068.5712227,0.00024401,2]
[334561121,1723213871300,-2596.5933174,0.00024401,2]
[334561122,1723213871321,-5661.6580567,0.00024401,2]
[334561123,1723213871331,-503969.37790832,0.00024403,2]
[334561124,1723213871341,-181.87898796,0.00024406,2]
[334561125,1723213871351,-19512.52,0.00024406,2]
[334561126,1723213871360,-249.71273278,0.00024406,2]
[334561127,1723213871370,-503969.37790832,0.00024408,2]
[334561128,1723213871379,-1214.50920312,0.00024409,2]
[334561129,1723213871389,-25576.66710686,0.00024411,2]
[334561130,1723213871399,-32053.37980783,0.00024411,2]
[334561131,1723213871409,-25576.66710686,0.00024412,2]
[334561132,1723213871423,-174.91219322,0.00024416,2]
[334561133,1723213871433,-11947.89055933,0.00024417,2]
[334561134,1723213871442,-25576.66710686,0.00024417,2]
[334561135,1723213871452,-503969.37790832,0.00024418,2]
[334561136,1723213871463,-249.71273278,0.00024419,2]
[334561137,1723213871472,-293.78519782,0.00024419,2]
[334561138,1723213871482,-334.13163852,0.0002442,2]
[334561139,1723213871491,-6034.28924746,0.00024422,2]
[334561140,1723213871501,-1214.50920312,0.00024423,2]
[334561141,1723213871511,-1214.50920312,0.00024425,2]
[334561142,1723213871521,-249.71273278,0.00024425,2]
[334561143,1723213871530,-503969.37790832,0.00024426,2]
[334561144,1723213871540,-6034.28924746,0.00024427,2]
[334561145,1723213871550,-25000.0,0.00024428,2]
[334561146,1723213871566,-5000.0,0.00024429,2]
[334561147,1723213871575,-15045.2610972,0.00024429,2]
[334561148,1723213871585,-2776.8579911,0.00024429,2]
[334561149,1723213871594,-6031.0252155,0.00024429,2]
[334561150,1723213871603,-249.71273278,0.00024431,2]
[334561151,1723213871613,-503969.37790832,0.00024431,2]
[334561152,1723213871622,-181.87898796,0.00024433,2]
[334561153,1723213871631,-6034.28924746,0.00024434,2]
[334561154,1723213871640,-174.91219322,0.00024434,2]
[334561155,1723213871651,-366.61282358,0.00024434,4]
[334561156,1723213871660,-181.87898796,0.00024435,2]
[334561157,1723213871669,-11947.89055933,0.00024435,2]
[334561158,1723213871678,-11947.89055933,0.00024436,2]
[334561159,1723213871688,-1214.50920312,0.00024436,2]
[334561160,1723213871697,-1214.50920312,0.00024436,2]
[334561161,1723213871707,-500.0,0.00024437,2]
[334561162,1723213871716,-32053.37980783,0.00024438,2]
[334561163,1723213871725,-174.91219322,0.00024438,2]
[334561164,1723213871735,-25576.66710686,0.0002444,2]
[334561165,1723213871744,-731.81,0.00024444,2]
[334561166,1723213871754,-5000.0,0.00024444,2]
[334561167,1723213871763,-6034.28924746,0.00024445,2]
[334561168,1723213871773,-181.87898796,0.00024445,2]
[334561169,1723213871783,-503969.37790832,0.00024446,2]
[334561170,1723213871793,-5000.0,0.00024446,2]
[334561171,1723213871808,-1700.0,0.00024447,2]
[334561172,1723213871817,-5000.0,0.00024447,2]
[334561173,1723213871826,-181.87898796,0.00024448,2]
[334561174,1723213871835,-32053.37980783,0.00024449,2]
[334561175,1723213871844,-6034.28924746,0.00024449,2]
[334561176,1723213871853,-249.71273278,0.0002445,2]
[334561177,1723213871862,-503969.37790832,0.0002445,2]
[334561178,1723213871871,-174.91219322,0.00024451,2]
[334561179,1723213871881,-5000.0,0.00024454,2]
[334561180,1723213871890,-32053.37980783,0.00024456,2]
[334561181,1723213871899,-25576.66710686,0.00024459,2]
[334561182,1723213871908,-503969.37790832,0.00024464,2]
[334561183,1723213871917,-181.87898796,0.00024465,2]
[334561184,1723213871926,-181.87898796,0.00024466,2]
[334561185,1723213871936,-11947.89055933,0.00024466,2]
[334561186,1723213871945,-25576.66710686,0.00024467,2]
[334561187,1723213871954,-6034.28924746,0.00024468,2]
[334561188,1723213871963,-32053.37980783,0.00024469,2]
[334561189,1723213871973,-11947.89055933,0.0002447,2]
[334561190,1723213871982,-15879.22524249,0.0002447,2]
[334561191,1723213871991,-636985.72205282,0.0002447,2]
[334561192,1723213872000,-150.0,0.00024473,2]
[334561193,1723213872009,-249.71273278,0.00024473,2]
[334561194,1723213872019,-25576.66710686,0.00024473,2]
[334561195,1723213872028,-205.0,0.00024474,7]
[334561196,1723213872037,-16021.9509717,0.00024474,2]
[334561197,1723213872047,-2957.1226648,0.00024474,2]
[334561198,1723213872063,-6400.3923743,0.00024474,2]
[334561199,1723213872072,-25576.66710686,0.00024474,2]
[334561200,1723213872082,-32053.37980783,0.00024475,2]
[334561201,1723213872092,-1214.50920312,0.00024476,2]
[334561202,1723213872102,-181.87898796,0.00024477,2]
[334561203,1723213872112,-500.0,0.00024479,2]
[334561204,1723213872121,-6034.28924746,0.0002448,2]
[334561205,1723213872131,-11947.89055933,0.00024481,2]
[334561206,1723213872142,-150.0,0.00024481,2]
[334561207,1723213872153,-174.91219322,0.00024481,2]
[334561208,1723213872163,-249.71273278,0.00024481,2]
[334561209,1723213872173,-249.71273278,0.00024481,2]
[334561210,1723213872186,-11947.89055933,0.00024484,2]
[334561211,1723213872196,-174.91219322,0.00024485,2]
[334561212,1723213872207,-1214.50920312,0.00024487,2]
[334561213,1723213872218,-174.91219322,0.00024489,2]
[334561214,1723213872228,-32053.37980783,0.00024491,2]
[334561215,1723213872238,-32053.37980783,0.00024491,2]
[334561216,1723213872249,-750.22562744,0.00024493,2]
[334561217,1723213872261,-11947.89055933,0.00024494,2]
[334561218,1723213872271,-6034.28924746,0.00024496,2]
[334561219,1723213872282,-1214.50920312,0.00024497,2]
[334561220,1723213872292,-500.0,0.00024498,2]
[334561221,1723213872302,-500.0,0.00024499,5]
[334561222,1723213872321,-500.0,0.00024499,5]
[334561223,1723213872330,-500.0,0.00024499,5]
[334561224,1723213872340,-500.0,0.00024499,5]
[334561225,1723213872349,-500.0,0.00024499,5]
[334561226,1723213872358,-500.0,0.00024499,5]
[334561227,1723213872368,-168.5636043,0.00024499,5]
[334561228,1723213872377,-300.334,0.00024499,2]
[334561229,1723213872387,-174.91219322,0.00024499,2]
[334561230,1723213872396,-843795.49441108,0.000245,5]
[334561231,1723213872405,-1137954.82,0.000245,5]
[334561232,1723213872416,-2000.0,0.000245,2]
[334561233,1723213872516,-989.0,0.000245,7]
[334561234,1723213872526,-171.0,0.000245,2]
[334561235,1723213872535,-150.0,0.000245,2]
[334561236,1723213872544,-29453.72,0.000245,5]
[334561237,1723213872557,-1001.0,0.000245,10]
[334561238,1723213872567,-298.0,0.000245,2]
[334561239,1723213872576,-200.0,0.000245,2]
[334561240,1723213872585,-2000.0,0.000245,2]
[334561241,1723213872593,-1532.4,0.000245,2]
[334561242,1723213872602,-859.0,0.000245,2]
[334561243,1723213872611,-1000.0,0.000245,7]
[334561244,1723213872620,-1001.4,0.000245,7]
[334561245,1723213872629,-204.0,0.000245,2]
[334561246,1723213872639,-549.0,0.000245,12]
[334561247,1723213872648,-494.0,0.000245,7]
[334561248,1723213872657,-859.0,0.000245,2]
[334561249,1723213872666,-192.0,0.000245,7]
[334561250,1723213872675,-600.0,0.000245,2]
[334561251,1723213872685,-1136.15794049,0.000245,2]
[334561252,1723213872694,-1003.19004064,0.000245,2]
[334561253,1723213872703,-1013.01462448,0.000245,2]
[334561254,1723213872712,-13000.0,0.000245,2]
[334561255,1723213872721,-275.944832,0.000245,2]
[334561256,1723213872730,-1001.49898663,0.000245,2]
[334561257,1723213872740,-574.0,0.000245,2]
[334561258,1723213872749,-4884.75,0.00024505,2]
[334561259,1723213872758,-500.0,0.0002451,2]
[334561260,1723213872767,-900.0,0.00024511,2]
[334561261,1723213872776,-500.0,0.00024515,2]
[334561262,1723213872786,-500.0,0.00024524,2]
[334561263,1723213872794,-150.0,0.00024524,2]
[334561264,1723213872808,-500.0,0.00024532,2]
[334561265,1723213872817,-500.0,0.00024541,2]
[334561266,1723213872826,-150.0,0.00024543,4]
[334561267,1723213872835,-500.0,0.0002455,2]
[334561268,1723213872844,-600.0,0.00024552,2]
[334561269,1723213872853,-500.0,0.00024559,2]
[334561270,1723213872863,-2536.09,0.00024562,2]
[334561271,1723213872872,-500.0,0.00024566,2]
[334561272,1723213872881,-500.0,0.00024568,2]
[334561273,1723213872891,-500.0,0.00024575,2]
[334561274,1723213872900,-5000.0,0.00024575,2]
[334561275,1723213872909,-366.61282358,0.00024576,4]
[334561276,1723213872918,-500.0,0.00024576,2]
[334561277,1723213872928,-500.0,0.00024585,2]
[334561278,1723213872938,-2800.0,0.00024589,2]
[334561279,1723213872947,-150.0,0.00024591,2]
[334561280,1723213872956,-500.0,0.00024594,2]
[334561281,1723213872965,-600.0,0.00024596,2]
[334561282,1723213872975,-600.0,0.00024598,2]
[334561283,1723213872984,-1000.0,0.000246,7]
[334561284,1723213872993,-1000.0,0.000246,7]
[334561285,1723213873004,-1000.0,0.000246,7]
[334561286,1723213873013,-1000.0,0.000246,7]
[334561287,1723213873023,-811.0,0.000246,7]
[334561288,1723213873032,-500.0,0.00024603,2]
[334561289,1723213873042,-500.0,0.00024603,2]
[334561290,1723213873051,-500.0,0.0002461,2]
[334561291,1723213873067,-500.0,0.00024612,2]
[334561292,1723213873076,-500.0,0.00024612,2]
[334561293,1723213873085,-5000.0,0.00024612,2]
[334561294,1723213873095,-150.0,0.00024617,2]
[334561295,1723213873105,-5000.0,0.00024618,2]
[334561296,1723213873115,-500.0,0.0002462,2]
[334561297,1723213873124,-500.0,0.0002462,2]
[334561298,1723213873134,-500.0,0.00024621,2]
[334561299,1723213873143,-150.0,0.00024626,2]
[334561300,1723213873153,-500.0,0.00024629,2]
[334561301,1723213873162,-500.0,0.00024629,2]
[334561302,1723213873173,-613.36,0.00024634,2]
[334561303,1723213873183,-5000.0,0.00024636,2]
[334561304,1723213873192,-509.62426263,0.00024637,2]
[334561305,1723213873202,-500.0,0.00024638,2]
[334561306,1723213873211,-500.0,0.00024638,2]
[334561307,1723213873220,-500.0,0.00024647,2]
[334561308,1723213873230,-500.0,0.00024647,2]
[334561309,1723213873239,-500.0,0.00024656,2]
[334561310,1723213873249,-500.0,0.00024656,2]
[334561311,1723213873259,-2856.67,0.00024657,2]
[334561312,1723213873269,-2856.67,0.00024657,2]
[334561313,1723213873279,-2856.67,0.00024657,2]
[334561314,1723213873289,-2856.67,0.00024657,2]
[334561315,1723213873299,-2856.67,0.00024657,2]
[334561316,1723213873319,-2856.67,0.00024657,2]
[334561317,1723213873328,-2856.67,0.00024657,2]
[334561318,1723213873342,-2856.67,0.00024657,2]
[334561319,1723213873352,-2856.67,0.00024657,2]
[334561320,1723213873361,-2856.67,0.00024657,2]
[334561321,1723213873371,-2856.67,0.00024657,2]
[334561322,1723213873380,-2856.67,0.00024657,2]
[334561323,1723213873390,-2856.67,0.00024657,2]
[334561324,1723213873399,-2856.67,0.00024657,2]
[334561325,1723213873408,-2856.67,0.00024657,2]
[334561326,1723213873418,-2856.67,0.00024657,2]
[334561327,1723213873428,-2856.67,0.00024657,2]
[334561328,1723213873437,-2856.67,0.00024657,2]
[334561329,1723213873449,-2856.67,0.00024657,2]
[334561330,1723213873458,-2856.67,0.00024657,2]
[334561331,1723213873468,-2856.67,0.00024657,2]
[334561332,1723213873479,-2856.67,0.00024657,2]
[334561333,1723213873489,-2856.67,0.00024657,2]
[334561334,1723213873498,-2856.72911716,0.00024657,2]
[334561335,1723213873508,-2000.0,0.00024657,2]
[334561336,1723213873521,-2000.0,0.00024657,2]
[334561337,1723213873533,-2000.0,0.00024657,2]
[334561338,1723213873542,-2000.0,0.00024657,2]
[334561339,1723213873552,-2000.0,0.00024657,2]
[334561340,1723213873571,-2000.0,0.00024657,2]
[334561341,1723213873581,-1316.65678811,0.00024657,2]
[334561342,1723213873590,-826.475832,0.00024658,7]
[334561343,1723213873599,-826.475832,0.00024658,7]
[334561344,1723213873609,-826.475832,0.00024658,7]
[334561345,1723213873619,-826.475832,0.00024658,7]
[334561346,1723213873628,-826.475832,0.00024658,7]
[334561347,1723213873638,-826.475832,0.00024658,7]
[334561348,1723213873648,-826.475832,0.00024658,7]
[334561349,1723213873657,-826.475832,0.00024658,7]
[334561350,1723213873667,-826.475832,0.00024658,7]
[334561351,1723213873676,-826.475832,0.00024658,7]
[334561352,1723213873686,-826.475832,0.00024658,7]
[334561353,1723213873695,-826.475832,0.00024658,7]
[334561354,1723213873705,-826.475832,0.00024658,7]
[334561355,1723213873714,-826.475832,0.00024658,7]
[334561356,1723213873726,-826.475832,0.00024658,7]
[334561357,1723213873735,-826.475832,0.00024658,7]
[334561358,1723213873745,-826.475832,0.00024658,7]
[334561359,1723213873754,-826.475832,0.00024658,7]
[334561360,1723213873764,-826.475832,0.00024658,7]
[334561361,1723213873774,-826.475828,0.00024658,7]
[334561362,1723213873783,-994.39,0.0002466,2]
[334561363,1723213873793,-217.67,0.0002466,2]
[334561364,1723213873802,-174.04356087,0.0002466,2]
[334561365,1723213873823,-174.04356087,0.0002466,2]
[334561366,1723213873833,-174.04356087,0.0002466,2]
[334561367,1723213873843,-174.04356087,0.0002466,2]
[334561368,1723213873853,-277.36,0.0002466,2]
[334561369,1723213873862,-158.42253266,0.0002466,2]
[334561370,1723213873872,-158.42253266,0.0002466,2]
[334561371,1723213873881,-158.42253266,0.0002466,2]
[334561372,1723213873890,-158.42253266,0.0002466,2]
[334561373,1723213873900,-158.42253266,0.0002466,2]
[334561374,1723213873909,-158.42253266,0.0002466,2]
[334561375,1723213873919,-156.63113422,0.0002466,2]
[334561376,1723213873929,-156.63113422,0.0002466,2]
[334561377,1723213873939,-156.63113422,0.0002466,2]
[334561378,1723213873949,-156.63113422,0.0002466,2]
[334561379,1723213874034,-156.63113422,0.0002466,2]
[334561380,1723213874056,-156.63113422,0.0002466,2]
[334561381,1723213874070,-156.63113422,0.0002466,2]
[334561382,1723213874080,-156.63113422,0.0002466,2]
[334561383,1723213874089,-156.63113422,0.0002466,2]
[334561384,1723213874098,-156.63113422,0.0002466,2]
[334561385,1723213874108,-156.63113422,0.0002466,2]
[334561386,1723213874118,-156.63113422,0.0002466,2]
[334561387,1723213874127,-156.63113422,0.0002466,2]
[334561388,1723213874137,-156.63113422,0.0002466,2]
[334561389,1723213874147,-156.63113422,0.0002466,2]
[334561390,1723213874157,-156.63113422,0.0002466,2]
[334561391,1723213874167,-156.63113422,0.0002466,2]
[334561392,1723213874177,-157.13,0.0002466,2]
[334561393,1723213874187,-563.94708318,0.0002466,2]
[334561394,1723213874197,-563.94708318,0.0002466,2]
[334561395,1723213874207,-563.94708318,0.0002466,2]
[334561396,1723213874216,-563.94708318,0.0002466,2]
[334561397,1723213874226,-563.94708318,0.0002466,2]
[334561398,1723213874236,-563.94708318,0.0002466,2]
[334561399,1723213874246,-563.94708318,0.0002466,2]
[334561400,1723213874256,-563.94708318,0.0002466,2]
[334561401,1723213874265,-563.94708318,0.0002466,2]
[334561402,1723213874275,-563.94708318,0.0002466,2]
[334561403,1723213874284,-563.94708318,0.0002466,2]
[334561404,1723213874293,-563.94708318,0.0002466,2]
[334561405,1723213874307,-563.94708318,0.0002466,2]
[334561406,1723213874318,-563.94708318,0.0002466,2]
[334561407,1723213874328,-563.94708318,0.0002466,2]
[334561408,1723213874338,-563.94708318,0.0002466,2]
[334561409,1723213874347,-563.94708318,0.0002466,2]
[334561410,1723213874357,-563.94708318,0.0002466,2]
[334561411,1723213874367,-563.94708318,0.0002466,2]
[334561412,1723213874376,-154.43540856,0.0002466,2]
[334561413,1723213874387,-154.43540856,0.0002466,2]
[334561414,1723213874397,-154.43540856,0.0002466,2]
[334561415,1723213874406,-154.43540856,0.0002466,2]
[334561416,1723213874415,-154.43540856,0.0002466,2]
[334561417,1723213874434,-154.43540856,0.0002466,2]
[334561418,1723213874443,-154.43540856,0.0002466,2]
[334561419,1723213874453,-154.43540856,0.0002466,2]
[334561420,1723213874463,-154.43540856,0.0002466,2]
[334561421,1723213874475,-154.43540856,0.0002466,2]
[334561422,1723213874484,-154.43540856,0.0002466,2]
[334561423,1723213874494,-154.43540856,0.0002466,2]
[334561424,1723213874504,-154.43540856,0.0002466,2]
[334561425,1723213874513,-154.43540856,0.0002466,2]
[334561426,1723213874523,-154.43540856,0.0002466,2]
[334561427,1723213874532,-154.93,0.0002466,2]
[334561428,1723213874542,-494.26830738,0.0002466,2]
[334561429,1723213874552,-494.26830738,0.0002466,2]
[334561430,1723213874565,-494.26830738,0.0002466,2]
[334561431,1723213874574,-494.26830738,0.0002466,2]
[334561432,1723213874584,-494.26830738,0.0002466,2]
[334561433,1723213874594,-494.26830738,0.0002466,2]
[334561434,1723213874605,-494.26830738,0.0002466,2]
[334561435,1723213874615,-494.26830738,0.0002466,2]
[334561436,1723213874625,-494.26830738,0.0002466,2]
[334561437,1723213874634,-494.26830738,0.0002466,2]
[334561438,1723213874644,-494.26830738,0.0002466,2]
[334561439,1723213874653,-494.26830738,0.0002466,2]
[334561440,1723213874663,-494.26830738,0.0002466,2]
[334561441,1723213874672,-494.26830738,0.0002466,2]
[334561442,1723213874682,-494.26830738,0.0002466,2]
[334561443,1723213874691,-494.26830738,0.0002466,2]
[334561444,1723213874700,-494.26830738,0.0002466,2]
[334561445,1723213874710,-494.26830738,0.0002466,2]
[334561446,1723213874719,-494.26830738,0.0002466,2]
[334561447,1723213874730,-150.0,0.00024662,2]
[334561448,1723213874740,-500.0,0.00024664,2]
[334561449,1723213874750,-500.0,0.00024664,2]
[334561450,1723213874760,-500.0,0.00024673,2]
[334561451,1723213874770,-500.0,0.00024673,2]
[334561452,1723213874779,-500.0,0.00024682,2]
[334561453,1723213874788,-500.0,0.00024682,2]
[334561454,1723213874798,-5000.0,0.00024686,2]
[334561455,1723213874812,-150.0,0.0002469,2]
[334561456,1723213874821,-500.0,0.00024691,2]
[334561457,1723213874831,-500.0,0.00024691,2]
[334561458,1723213874840,-150.0,0.00024696,4]
[334561459,1723213874850,-500.0,0.000247,2]
[334561460,1723213874859,-500.0,0.000247,2]
[334561461,1723213874869,-232.33074235,0.000247,2]
[334561462,1723213874878,-600.0,0.00024702,2]
[334561463,1723213874888,-600.0,0.00024703,2]
[334561464,1723213874898,-5000.0,0.00024703,2]
[334561465,1723213874907,-500.0,0.00024708,2]
[334561466,1723213874916,-500.0,0.00024708,2]
[334561467,1723213874925,-5000.0,0.00024709,2]
[334561468,1723213874935,-366.61282358,0.00024717,4]
[334561469,1723213874944,-500.0,0.00024717,2]
[334561470,1723213874954,-500.0,0.00024717,2]
[334561471,1723213874963,-25000.0,0.00024725,2]
[334561472,1723213874973,-500.0,0.00024726,2]
[334561473,1723213874983,-500.0,0.00024726,2]
[334561474,1723213874992,-150.0,0.00024726,2]
[334561475,1723213875003,-150.0,0.00024727,2]
[334561476,1723213875013,-1700.0,0.00024731,2]
[334561477,1723213875022,-5000.0,0.00024733,2]
[334561478,1723213875032,-5000.0,0.00024734,2]
[334561479,1723213875042,-500.0,0.00024735,2]
[334561480,1723213875051,-500.0,0.00024735,2]
[334561481,1723213875068,-5000.0,0.00024736,2]
[334561482,1723213875077,-5000.0,0.00024737,2]
[334561483,1723213875086,-600.0,0.00024742,2]
[334561484,1723213875096,-500.0,0.00024744,2]
[334561485,1723213875106,-500.0,0.00024744,2]
[334561486,1723213875115,-500.0,0.00024744,2]
[334561487,1723213875125,-150.0,0.00024748,2]
[334561488,1723213875135,-11729.57532132,0.0002475,2]
[334561489,1723213875144,-574.0,0.0002475,2]
[334561490,1723213875154,-500.0,0.00024752,2]
[334561491,1723213875163,-500.0,0.00024752,2]
[334561492,1723213875173,-5000.0,0.00024754,2]
[334561493,1723213875183,-5000.0,0.00024758,2]
[334561494,1723213875193,-500.0,0.00024761,2]
[334561495,1723213875202,-500.0,0.00024761,2]
[334561496,1723213875211,-600.0,0.00024762,2]
[334561497,1723213875223,-5000.0,0.00024765,2]
[334561498,1723213875232,-5000.0,0.00024765,2]
[334561499,1723213875242,-500.0,0.0002477,2]
[334561500,1723213875252,-500.0,0.0002477,2]
[334561501,1723213875261,-31884.82005819,0.0002477,2]
[334561502,1723213875271,-150.0,0.00024771,2]
[334561503,1723213875281,-1700.0,0.00024774,2]
[334561504,1723213875290,-2000.0,0.00024774,2]
[334561505,1723213875299,-3000.0,0.00024774,2]
[334561506,1723213875313,-3000.0,0.00024774,2]
[334561507,1723213875322,-500.0,0.00024779,2]
[334561508,1723213875332,-500.0,0.00024779,2]
[334561509,1723213875342,-600.0,0.00024784,2]
[334561510,1723213875351,-500.0,0.00024788,2]
[334561511,1723213875360,-500.0,0.00024788,2]
[334561512,1723213875369,-1560.19,0.00024794,2]
[334561513,1723213875378,-500.0,0.00024796,2]
[334561514,1723213875388,-500.0,0.00024796,2]
[334561515,1723213875479,-900.0,0.00024798,2]
[334561516,1723213875489,-3000.0,0.000248,2]
[334561517,1723213875498,-3000.0,0.000248,2]
[334561518,1723213875507,-3000.0,0.000248,2]
[334561519,1723213875519,-3000.0,0.000248,2]
[334561520,1723213875528,-3000.0,0.000248,2]
[334561521,1723213875538,-3000.0,0.000248,2]
[334561522,1723213875547,-3000.0,0.000248,2]
[334561523,1723213875561,-3000.0,0.000248,2]
[334561524,1723213875571,-3000.0,0.000248,2]
[334561525,1723213875580,-3000.0,0.000248,2]
[334561526,1723213875591,-3000.0,0.000248,2]
[334561527,1723213875600,-3000.0,0.000248,2]
[334561528,1723213875610,-3000.0,0.000248,2]
[334561529,1723213875620,-3000.0,0.000248,2]
[334561530,1723213875629,-3000.0,0.000248,2]
[334561531,1723213875639,-3000.0,0.000248,2]
[334561532,1723213875648,-3000.0,0.000248,2]
[334561533,1723213875658,-3000.0,0.000248,2]
[334561534,1723213875667,-3000.0,0.000248,2]
[334561535,1723213875677,-35000.0,0.000248,2]
[334561536,1723213875686,-12273.91453326,0.000248,2]
[334561537,1723213875696,-500.0,0.00024805,2]
[334561538,1723213875705,-500.0,0.00024805,2]
[334561539,1723213875716,-500.0,0.00024809,2]
[334561540,1723213875725,-500.0,0.00024809,2]
[334561541,1723213875735,-500.0,0.00024814,2]
[334561542,1723213875745,-500.0,0.00024814,2]
[334561543,1723213875755,-5000.0,0.00024814,2]
[334561544,1723213875764,-3100.0,0.00024821,2]
[334561545,1723213875774,-500.0,0.00024823,2]
[334561546,1723213875783,-500.0,0.00024823,2]
[334561547,1723213875792,-150.0,0.00024826,2]
[334561548,1723213875803,-5000.0,0.00024826,2]
[334561549,1723213875820,-150.0,0.00024831,2]
[334561550,1723213875829,-500.0,0.00024832,2]
[334561551,1723213875839,-500.0,0.00024832,2]
[334561552,1723213875848,-500.0,0.00024833,2]
[334561553,1723213875857,-4415.09,0.00024833,2]